[Event "Titled Tuesday Blitz May 03 Late 2022"]
[White "Rustemov, Alexander"]
[Black "Suarez Uriel, Adrian"]
[WhiteFideId "4119002"]
[BlackFideId "22230874"]
[WhiteElo "2732"]
[BlackElo "2316"]
[Result "1-0"]
[Round "07"]
[TimeControl "180+1"]
[Date "2022.05.03"]
[WhiteClock "0:00:07"]
[BlackClock "0:00:03"]

1. d4 {[%clk 0:03:00]}  Nf6 {[%clk 0:02:59]} 2. c4 {[%clk 0:03:00]}  b6 {[%clk 0:03:00]} 3. f3 {[%clk 0:02:58]}  Nc6 {[%clk 0:02:59]} 4. e4 {[%clk 0:02:58]}  e5 {[%clk 0:02:57]} 5. Ne2 {[%clk 0:02:50]}  exd4 {[%clk 0:02:55]} 6. Nxd4 {[%clk 0:02:50]}  Nxd4 {[%clk 0:02:56]} 7. Qxd4 {[%clk 0:02:49]}  Bc5 {[%clk 0:02:57]} 8. Qe5+ {[%clk 0:02:46]}  Be7 {[%clk 0:02:51]} 9. Nc3 {[%clk 0:02:38]}  O-O {[%clk 0:02:51]} 10. Be3 {[%clk 0:02:29]}  Re8 {[%clk 0:02:48]} 11. Qg3 {[%clk 0:02:05]}  Bb4 {[%clk 0:02:40]} 12. Bd2 {[%clk 0:01:36]}  Bd6 {[%clk 0:02:23]} 13. Qh4 {[%clk 0:01:29]}  Bb7 {[%clk 0:02:11]} 14. O-O-O {[%clk 0:01:29]}  a6 {[%clk 0:01:57]} 15. Bd3 {[%clk 0:01:28]}  b5 {[%clk 0:01:50]} 16. Rhe1 {[%clk 0:01:27]}  bxc4 {[%clk 0:01:31]} 17. Bxc4 {[%clk 0:01:27]}  Be7 {[%clk 0:01:29]} 18. e5 {[%clk 0:01:22]}  d5 {[%clk 0:00:50]} 19. Bg5 {[%clk 0:01:13]}  Nd7 {[%clk 0:00:09]} 20. Bxe7 {[%clk 0:01:11]}  Qxe7 {[%clk 0:00:09]} 21. Qxe7 {[%clk 0:01:10]}  Rxe7 {[%clk 0:00:10]} 22. Nxd5 {[%clk 0:01:00]}  Rxe5 {[%clk 0:00:10]} 23. Nc3 {[%clk 0:00:34]}  Rxe1 {[%clk 0:00:10]} 24. Rxe1 {[%clk 0:00:35]}  Kf8 {[%clk 0:00:10]} 25. Kc2 {[%clk 0:00:25]}  Nb6 {[%clk 0:00:10]} 26. Bb3 {[%clk 0:00:22]}  Rd8 {[%clk 0:00:11]} 27. Re5 {[%clk 0:00:19]}  h5 {[%clk 0:00:10]} 28. Rxh5 {[%clk 0:00:18]}  Rd6 {[%clk 0:00:10]} 29. Re5 {[%clk 0:00:16]}  Nd7 {[%clk 0:00:09]} 30. Re2 {[%clk 0:00:16]}  Nc5 {[%clk 0:00:09]} 31. Bc4 {[%clk 0:00:16]}  a5 {[%clk 0:00:09]} 32. a3 {[%clk 0:00:16]}  Ne6 {[%clk 0:00:07]} 33. Bxe6 {[%clk 0:00:15]}  fxe6 {[%clk 0:00:08]} 34. Re5 {[%clk 0:00:14]}  Bd5 {[%clk 0:00:08]} 35. b4 {[%clk 0:00:08]}  axb4 {[%clk 0:00:07]} 36. axb4 {[%clk 0:00:08]}  Rb6 {[%clk 0:00:07]} 37. b5 {[%clk 0:00:08]}  Rd6 {[%clk 0:00:07]} 38. Nxd5 {[%clk 0:00:07]}  exd5 {[%clk 0:00:07]} 39. Kc3 {[%clk 0:00:06]}  d4+ {[%clk 0:00:07]} 40. Kd3 {[%clk 0:00:07]}  Kf7 {[%clk 0:00:06]} 41. Rc5 {[%clk 0:00:07]}  Rd7 {[%clk 0:00:03]} 42. Rc4 {[%clk 0:00:07]}  Ke6 {[%clk 0:00:02]} 43. Rxd4 {[%clk 0:00:07]}  Rf7 {[%clk 0:00:03]} 44. Ke3 {[%clk 0:00:05]}  Rf5 {[%clk 0:00:02]} 45. Rc4 {[%clk 0:00:06]}  Kd6 {[%clk 0:00:02]} 46. Rc6+ {[%clk 0:00:06]}  Kd7 {[%clk 0:00:02]} 47. Rg6 {[%clk 0:00:06]}  Rxb5 {[%clk 0:00:02]} 48. Rxg7+ {[%clk 0:00:07]}  Kd6 {[%clk 0:00:03]} 49. g4 {[%clk 0:00:07]}  c5 {[%clk 0:00:03]} 50. h4 {[%clk 0:00:07]}  Rb3+ {[%clk 0:00:03]} 51. Kf4 {[%clk 0:00:07]}  c4 {[%clk 0:00:04]} 52. Rg8 {[%clk 0:00:07]}  Kd7 {[%clk 0:00:03]} 53. Ra8 {[%clk 0:00:06]}  c3 {[%clk 0:00:04]} 54. Ra1 {[%clk 0:00:05]}  c2 {[%clk 0:00:02]} 55. Rc1 {[%clk 0:00:05]}  Rc3 {[%clk 0:00:03]} 56. h5 {[%clk 0:00:06]}  Ke6 {[%clk 0:00:04]} 57. Kg5 {[%clk 0:00:06]}  Kf7 {[%clk 0:00:03]} 58. f4 {[%clk 0:00:06]}  Kg7 {[%clk 0:00:02]} 59. f5 {[%clk 0:00:06]}  Kh7 {[%clk 0:00:03]} 60. h6 {[%clk 0:00:06]}  Rc5 {[%clk 0:00:03]} 61. Kh5 {[%clk 0:00:07]}  Kg8 {[%clk 0:00:01]} 62. Kg6 {[%clk 0:00:06]}  Rc6+ {[%clk 0:00:01]} 63. f6 {[%clk 0:00:06]}  Kh8 {[%clk 0:00:02]} 64. g5 {[%clk 0:00:07]}  Kg8 {[%clk 0:00:01]} 65. Kh5 {[%clk 0:00:07]}  Kh7 {[%clk 0:00:01]} 66. g6+ {[%clk 0:00:07]}  Kh8 {[%clk 0:00:02]} 67. f7 {[%clk 0:00:06]}  Rc5+ {[%clk 0:00:02]} 68. Kg4 {[%clk 0:00:06]}  Rc4+ {[%clk 0:00:02]} 69. Kf3 {[%clk 0:00:06]}  Rc8 {[%clk 0:00:02]} 70. g7+ {[%clk 0:00:06]}  Kh7 {[%clk 0:00:02]} 71. g8=Q+ {[%clk 0:00:06]}  Rxg8 {[%clk 0:00:03]} 72. fxg8=Q+ {[%clk 0:00:06]}  Kxg8 {[%clk 0:00:03]} 73. Rxc2 {[%clk 0:00:07]} 1-0


[Site "https://www.chess.com"]

[Event "Titled Tuesday Blitz May 03 Late 2022"]
[White "Sarana, Alexey"]
[Black "Nagy, Gabor"]
[WhiteFideId "24133795"]
[BlackFideId "737119"]
[WhiteElo "2666"]
[BlackElo "2534"]
[Result "1-0"]
[Round "07"]
[TimeControl "180+1"]
[Date "2022.05.03"]
[WhiteClock "0:01:56"]
[BlackClock "0:01:50"]

1. d4 {[%clk 0:03:00]}  d5 {[%clk 0:03:00]} 2. c4 {[%clk 0:03:01]}  e6 {[%clk 0:03:00]} 3. Nc3 {[%clk 0:03:02]}  Bb4 {[%clk 0:03:00]} 4. cxd5 {[%clk 0:03:01]}  exd5 {[%clk 0:03:00]} 5. Bf4 {[%clk 0:03:02]}  c6 {[%clk 0:03:00]} 6. e3 {[%clk 0:03:02]}  Nf6 {[%clk 0:03:00]} 7. Bd3 {[%clk 0:03:03]}  O-O {[%clk 0:02:58]} 8. Nf3 {[%clk 0:03:03]}  Ne4 {[%clk 0:02:55]} 9. O-O {[%clk 0:02:57]}  Re8 {[%clk 0:02:49]} 10. Qc2 {[%clk 0:02:57]}  Bxc3 {[%clk 0:02:48]} 11. bxc3 {[%clk 0:02:58]}  Nd7 {[%clk 0:02:46]} 12. Nd2 {[%clk 0:02:52]}  Nxd2 {[%clk 0:02:44]} 13. Qxd2 {[%clk 0:02:52]}  Nb6 {[%clk 0:02:43]} 14. f3 {[%clk 0:02:49]}  h6 {[%clk 0:02:39]} 15. Rae1 {[%clk 0:02:45]}  Be6 {[%clk 0:02:33]} 16. e4 {[%clk 0:02:45]}  dxe4 {[%clk 0:02:32]} 17. fxe4 {[%clk 0:02:46]}  Bc4 {[%clk 0:02:31]} 18. Rf3 {[%clk 0:02:43]}  Bxd3 {[%clk 0:02:29]} 19. Qxd3 {[%clk 0:02:44]}  Re6 {[%clk 0:02:27]} 20. Rg3 {[%clk 0:02:44]}  Qd7 {[%clk 0:02:23]} 21. Rf1 {[%clk 0:02:33]}  Rae8 {[%clk 0:02:21]} 22. Be5 {[%clk 0:02:25]}  Rxe5 {[%clk 0:02:18]} 23. dxe5 {[%clk 0:02:26]}  Rxe5 {[%clk 0:02:13]} 24. Qxd7 {[%clk 0:02:19]}  Nxd7 {[%clk 0:02:13]} 25. Rd3 {[%clk 0:02:18]}  Nc5 {[%clk 0:02:13]} 26. Rd8+ {[%clk 0:02:18]}  Kh7 {[%clk 0:02:13]} 27. Rxf7 {[%clk 0:02:18]}  Rxe4 {[%clk 0:02:13]} 28. h3 {[%clk 0:02:16]}  a5 {[%clk 0:02:12]} 29. Rd4 {[%clk 0:02:13]}  Re2 {[%clk 0:02:06]} 30. Rg4 {[%clk 0:02:12]}  Ne6 {[%clk 0:02:06]} 31. Rxb7 {[%clk 0:02:11]}  Rxa2 {[%clk 0:02:05]} 32. Rb6 {[%clk 0:02:11]}  a4 {[%clk 0:02:02]} 33. Rxc6 {[%clk 0:02:11]}  Ng5 {[%clk 0:02:02]} 34. Ra6 {[%clk 0:02:10]}  Rc2 {[%clk 0:01:59]} 35. Rc4 {[%clk 0:02:05]}  Rc1+ {[%clk 0:01:59]} 36. Kh2 {[%clk 0:02:05]}  Rc2 {[%clk 0:02:00]} 37. Kg3 {[%clk 0:02:03]}  Nf7 {[%clk 0:01:57]} 38. Raxa4 {[%clk 0:02:01]}  Nd6 {[%clk 0:01:57]} 39. Rc6 {[%clk 0:02:01]}  Nf5+ {[%clk 0:01:55]} 40. Kf3 {[%clk 0:01:59]}  h5 {[%clk 0:01:52]} 41. g4 {[%clk 0:01:57]}  Nh4+ {[%clk 0:01:50]} 42. Kg3 {[%clk 0:01:57]}  g5 {[%clk 0:01:50]} 43. Ra7+ {[%clk 0:01:56]}  Kh8 {[%clk 0:01:50]} 44. Rc8# {[%clk 0:01:56]} 1-0


[Site "https://www.chess.com"]

[Event "Titled Tuesday Blitz May 03 Late 2022"]
[White "Skawinski, Arkadiusz"]
[Black "Vovk, Orest"]
[WhiteFideId "1126415"]
[BlackFideId "14113490"]
[WhiteElo "2222"]
[BlackElo "2203"]
[Result "1-0"]
[Round "07"]
[TimeControl "180+1"]
[Date "2022.05.03"]
[WhiteClock "0:00:23"]
[BlackClock "0:00:22"]

1. e4 {[%clk 0:03:00]}  g5 {[%clk 0:02:57]} 2. d4 {[%clk 0:02:59]}  h6 {[%clk 0:02:57]} 3. h4 {[%clk 0:02:57]}  g4 {[%clk 0:02:57]} 4. c3 {[%clk 0:02:57]}  d5 {[%clk 0:02:57]} 5. e5 {[%clk 0:02:52]}  c5 {[%clk 0:02:57]} 6. h5 {[%clk 0:02:51]}  Nc6 {[%clk 0:02:57]} 7. Ne2 {[%clk 0:02:41]}  Qb6 {[%clk 0:02:56]} 8. Nf4 {[%clk 0:02:40]}  cxd4 {[%clk 0:02:53]} 9. e6 {[%clk 0:02:30]}  Bxe6 {[%clk 0:02:50]} 10. Nxe6 {[%clk 0:02:30]}  fxe6 {[%clk 0:02:50]} 11. Qxg4 {[%clk 0:02:30]}  dxc3 {[%clk 0:02:46]} 12. Nxc3 {[%clk 0:02:26]}  Nd4 {[%clk 0:02:40]} 13. Bd3 {[%clk 0:02:17]}  Nf6 {[%clk 0:02:37]} 14. Qf4 {[%clk 0:02:07]}  Rg8 {[%clk 0:02:21]} 15. Bg6+ {[%clk 0:01:59]}  Kd7 {[%clk 0:02:20]} 16. Be3 {[%clk 0:02:00]}  Qxb2 {[%clk 0:02:17]} 17. O-O {[%clk 0:01:50]}  Nc6 {[%clk 0:01:52]} 18. Rab1 {[%clk 0:01:26]}  e5 {[%clk 0:01:23]} 19. Qf5+ {[%clk 0:01:26]}  e6 {[%clk 0:01:21]} 20. Qxf6 {[%clk 0:01:25]}  Qxc3 {[%clk 0:01:20]} 21. Rxb7+ {[%clk 0:01:22]}  Kc8 {[%clk 0:01:04]} 22. Rfb1 {[%clk 0:01:14]}  Nd8 {[%clk 0:01:01]} 23. R7b3 {[%clk 0:00:59]}  Qa5 {[%clk 0:00:51]} 24. Be8 {[%clk 0:00:37]}  Bd6 {[%clk 0:00:41]} 25. Rc1+ {[%clk 0:00:35]}  Bc7 {[%clk 0:00:41]} 26. Bf7 {[%clk 0:00:33]}  Nxf7 {[%clk 0:00:36]} 27. Qxf7 {[%clk 0:00:34]}  Rd8 {[%clk 0:00:32]} 28. Qxe6+ {[%clk 0:00:33]}  Rd7 {[%clk 0:00:32]} 29. Rbc3 {[%clk 0:00:27]}  d4 {[%clk 0:00:32]} 30. Rxc7+ {[%clk 0:00:27]}  Qxc7 {[%clk 0:00:32]} 31. Rxc7+ {[%clk 0:00:27]}  Kxc7 {[%clk 0:00:31]} 32. Qxe5+ {[%clk 0:00:27]}  Kc6 {[%clk 0:00:31]} 33. Bxd4 {[%clk 0:00:27]}  Rad8 {[%clk 0:00:30]} 34. Qc5+ {[%clk 0:00:27]}  Kb7 {[%clk 0:00:30]} 35. Qxa7+ {[%clk 0:00:27]}  Kc6 {[%clk 0:00:30]} 36. Qb6+ {[%clk 0:00:27]}  Kd5 {[%clk 0:00:31]} 37. Be3 {[%clk 0:00:27]}  Rd6 {[%clk 0:00:28]} 38. Qc5+ {[%clk 0:00:27]}  Ke6 {[%clk 0:00:28]} 39. Bxh6 {[%clk 0:00:26]}  Rd1+ {[%clk 0:00:28]} 40. Kh2 {[%clk 0:00:26]}  R8d4 {[%clk 0:00:29]} 41. Bg5 {[%clk 0:00:24]}  Rd5 {[%clk 0:00:29]} 42. Qe3+ {[%clk 0:00:23]}  Kd7 {[%clk 0:00:27]} 43. h6 {[%clk 0:00:24]}  R1d3 {[%clk 0:00:22]} 44. Qxd3 {[%clk 0:00:23]}  Rxd3 {[%clk 0:00:22]} 45. h7 {[%clk 0:00:23]} 1-0


[Site "https://www.chess.com"]

[Event "Titled Tuesday Blitz May 03 Late 2022"]
[White "Skliarov, Viktor"]
[Black "Derraugh, Geordie"]
[WhiteFideId "14106736"]
[BlackFideId "2603950"]
[WhiteElo "2229"]
[BlackElo "2116"]
[Result "1-0"]
[Round "07"]
[TimeControl "180+1"]
[Date "2022.05.03"]
[WhiteClock "0:00:29"]
[BlackClock "0:00:08"]

1. e4 {[%clk 0:03:00]}  c5 {[%clk 0:02:59]} 2. Nf3 {[%clk 0:03:00]}  d6 {[%clk 0:02:59]} 3. d4 {[%clk 0:03:00]}  cxd4 {[%clk 0:03:00]} 4. Qxd4 {[%clk 0:03:01]}  Nc6 {[%clk 0:02:59]} 5. Bb5 {[%clk 0:03:00]}  Bd7 {[%clk 0:03:00]} 6. Bxc6 {[%clk 0:03:00]}  bxc6 {[%clk 0:02:59]} 7. c4 {[%clk 0:02:58]}  e5 {[%clk 0:02:58]} 8. Qd3 {[%clk 0:02:57]}  Qc7 {[%clk 0:02:56]} 9. O-O {[%clk 0:02:55]}  Nf6 {[%clk 0:02:55]} 10. b3 {[%clk 0:02:53]}  Be7 {[%clk 0:02:54]} 11. Ba3 {[%clk 0:02:52]}  Rd8 {[%clk 0:02:53]} 12. Rd1 {[%clk 0:02:43]}  Bg4 {[%clk 0:02:50]} 13. h3 {[%clk 0:02:41]}  Bh5 {[%clk 0:02:50]} 14. Nc3 {[%clk 0:02:36]}  O-O {[%clk 0:02:40]} 15. g4 {[%clk 0:02:07]}  Bg6 {[%clk 0:02:38]} 16. Qe3 {[%clk 0:02:08]}  h6 {[%clk 0:01:54]} 17. Rd2 {[%clk 0:01:49]}  Rfe8 {[%clk 0:01:00]} 18. Rad1 {[%clk 0:01:47]}  Nh7 {[%clk 0:01:00]} 19. c5 {[%clk 0:01:27]}  d5 {[%clk 0:00:47]} 20. exd5 {[%clk 0:01:21]}  Qa5 {[%clk 0:00:27]} 21. d6 {[%clk 0:01:12]}  Qxa3 {[%clk 0:00:21]} 22. dxe7 {[%clk 0:01:12]}  Rxd2 {[%clk 0:00:21]} 23. Rxd2 {[%clk 0:01:06]}  Rxe7 {[%clk 0:00:20]} 24. Rd8+ {[%clk 0:00:37]}  Nf8 {[%clk 0:00:21]} 25. Nxe5 {[%clk 0:00:37]}  Qb2 {[%clk 0:00:17]} 26. h4 {[%clk 0:00:33]}  Qa1+ {[%clk 0:00:16]} 27. Kh2 {[%clk 0:00:32]}  f6 {[%clk 0:00:13]} 28. Rxf8+ {[%clk 0:00:31]}  Kh7 {[%clk 0:00:14]} 29. Rh8+ {[%clk 0:00:31]}  Kxh8 {[%clk 0:00:13]} 30. Nxg6+ {[%clk 0:00:31]}  Kh7 {[%clk 0:00:14]} 31. Nxe7 {[%clk 0:00:31]}  Qf1 {[%clk 0:00:08]} 32. h5 {[%clk 0:00:29]} 1-0


[Site "https://www.chess.com"]

[Event "Titled Tuesday Blitz May 03 Late 2022"]
[White "Skytte, Rasmus"]
[Black "Smail, Benedict"]
[WhiteFideId "1404210"]
[BlackFideId "2050480"]
[WhiteElo "2430"]
[BlackElo "2070"]
[Result "0-1"]
[Round "07"]
[TimeControl "180+1"]
[Date "2022.05.03"]
[WhiteClock "0:00:43"]
[BlackClock "0:02:11"]

1. e4 {[%clk 0:02:57]}  c5 {[%clk 0:02:59]} 2. Nf3 {[%clk 0:02:54]}  d6 {[%clk 0:02:59]} 3. d4 {[%clk 0:02:52]}  cxd4 {[%clk 0:02:58]} 4. Nxd4 {[%clk 0:02:53]}  Nf6 {[%clk 0:02:59]} 5. Nc3 {[%clk 0:02:51]}  g6 {[%clk 0:02:59]} 6. Be3 {[%clk 0:02:48]}  Bg7 {[%clk 0:02:59]} 7. f3 {[%clk 0:02:45]}  Nc6 {[%clk 0:02:59]} 8. Qd2 {[%clk 0:02:41]}  O-O {[%clk 0:02:58]} 9. Bc4 {[%clk 0:02:37]}  Bd7 {[%clk 0:02:57]} 10. O-O-O {[%clk 0:02:28]}  Qc7 {[%clk 0:02:56]} 11. Bb3 {[%clk 0:02:22]}  Rfc8 {[%clk 0:02:54]} 12. h4 {[%clk 0:02:12]}  Na5 {[%clk 0:02:52]} 13. Kb1 {[%clk 0:02:02]}  Nc4 {[%clk 0:02:52]} 14. Bxc4 {[%clk 0:01:58]}  Qxc4 {[%clk 0:02:51]} 15. Nb3 {[%clk 0:01:56]}  b5 {[%clk 0:02:47]} 16. g4 {[%clk 0:01:43]}  a5 {[%clk 0:02:46]} 17. e5 {[%clk 0:01:37]}  b4 {[%clk 0:02:41]} 18. Ne2 {[%clk 0:01:23]}  dxe5 {[%clk 0:02:28]} 19. g5 {[%clk 0:01:19]}  Nh5 {[%clk 0:02:26]} 20. Nc5 {[%clk 0:00:43]}  Bf5 {[%clk 0:02:11]} 0-1


[Site "https://www.chess.com"]

[Event "Titled Tuesday Blitz May 03 Late 2022"]
[White "Sokolovsky, Yahli"]
[Black "Sztokbant, Bernardo Vainzoff"]
[WhiteFideId "2820242"]
[BlackFideId "2115956"]
[WhiteElo "1770"]
[BlackElo "2225"]
[Result "1-0"]
[Round "07"]
[TimeControl "180+1"]
[Date "2022.05.03"]
[WhiteClock "0:01:06"]
[BlackClock "0:01:15"]

1. b3 {[%clk 0:03:00]}  e5 {[%clk 0:02:59]} 2. Bb2 {[%clk 0:03:01]}  Nc6 {[%clk 0:02:58]} 3. e3 {[%clk 0:03:01]}  Nf6 {[%clk 0:02:57]} 4. Nf3 {[%clk 0:03:02]}  d6 {[%clk 0:02:56]} 5. d4 {[%clk 0:03:02]}  exd4 {[%clk 0:02:53]} 6. exd4 {[%clk 0:03:03]}  d5 {[%clk 0:02:50]} 7. Bd3 {[%clk 0:03:01]}  Bg4 {[%clk 0:02:49]} 8. O-O {[%clk 0:03:01]}  Be7 {[%clk 0:02:50]} 9. Nbd2 {[%clk 0:03:00]}  O-O {[%clk 0:02:50]} 10. Re1 {[%clk 0:02:59]}  Nb4 {[%clk 0:02:49]} 11. Be2 {[%clk 0:02:27]}  Bf5 {[%clk 0:02:49]} 12. c3 {[%clk 0:02:28]}  Nc2 {[%clk 0:02:48]} 13. Nh4 {[%clk 0:02:29]}  Be4 {[%clk 0:02:27]} 14. Nxe4 {[%clk 0:02:22]}  Nxe4 {[%clk 0:02:16]} 15. Qxc2 {[%clk 0:02:21]}  Bxh4 {[%clk 0:02:16]} 16. g3 {[%clk 0:02:21]}  Bf6 {[%clk 0:02:13]} 17. Bf3 {[%clk 0:02:21]}  Ng5 {[%clk 0:02:07]} 18. Bg2 {[%clk 0:02:21]}  c6 {[%clk 0:02:07]} 19. h4 {[%clk 0:02:04]}  Ne6 {[%clk 0:02:07]} 20. Re2 {[%clk 0:02:04]}  Re8 {[%clk 0:02:07]} 21. Rae1 {[%clk 0:02:05]}  g6 {[%clk 0:02:03]} 22. Bh3 {[%clk 0:02:02]}  Ng7 {[%clk 0:02:01]} 23. Bc1 {[%clk 0:01:50]}  Rxe2 {[%clk 0:01:56]} 24. Qxe2 {[%clk 0:01:51]}  Qe8 {[%clk 0:01:47]} 25. Qd1 {[%clk 0:01:38]}  Qf8 {[%clk 0:01:38]} 26. Qf3 {[%clk 0:01:38]}  Be7 {[%clk 0:01:28]} 27. Bh6 {[%clk 0:01:29]}  Bd6 {[%clk 0:01:21]} 28. Qf6 {[%clk 0:01:18]}  Bc7 {[%clk 0:01:15]} 29. Re7 {[%clk 0:01:07]}  Bd8 {[%clk 0:01:15]} 30. Qxg7+ {[%clk 0:01:06]} 1-0


[Site "https://www.chess.com"]

[Event "Titled Tuesday Blitz May 03 Late 2022"]
[White "Stanisz, Patryk"]
[Black "Meduri, Aakaash"]
[WhiteFideId "1123106"]
[BlackFideId "2032252"]
[WhiteElo "1833"]
[BlackElo "2096"]
[Result "0-1"]
[Round "07"]
[TimeControl "180+1"]
[Date "2022.05.03"]
[WhiteClock "0:00:03"]
[BlackClock "0:00:52"]

1. Nf3 {[%clk 0:03:00]}  d5 {[%clk 0:02:56]} 2. c4 {[%clk 0:02:58]}  e6 {[%clk 0:02:55]} 3. e3 {[%clk 0:02:58]}  Nf6 {[%clk 0:02:55]} 4. b3 {[%clk 0:02:59]}  c6 {[%clk 0:02:55]} 5. Bb2 {[%clk 0:02:59]}  Be7 {[%clk 0:02:56]} 6. Be2 {[%clk 0:02:57]}  O-O {[%clk 0:02:57]} 7. O-O {[%clk 0:02:58]}  Nbd7 {[%clk 0:02:56]} 8. d4 {[%clk 0:02:57]}  Re8 {[%clk 0:02:56]} 9. Nbd2 {[%clk 0:02:58]}  Nf8 {[%clk 0:02:57]} 10. Ne5 {[%clk 0:02:58]}  Ng6 {[%clk 0:02:57]} 11. f4 {[%clk 0:02:58]}  Bd7 {[%clk 0:02:56]} 12. Bd3 {[%clk 0:02:56]}  a5 {[%clk 0:02:56]} 13. Ndf3 {[%clk 0:02:49]}  a4 {[%clk 0:02:46]} 14. Ng5 {[%clk 0:02:43]}  Rf8 {[%clk 0:02:45]} 15. Qe1 {[%clk 0:02:18]}  axb3 {[%clk 0:02:12]} 16. axb3 {[%clk 0:02:17]}  Rxa1 {[%clk 0:02:12]} 17. Bxa1 {[%clk 0:02:18]}  Ne8 {[%clk 0:02:00]} 18. Ngf3 {[%clk 0:01:45]}  f5 {[%clk 0:01:49]} 19. Nxg6 {[%clk 0:01:34]}  hxg6 {[%clk 0:01:49]} 20. Ne5 {[%clk 0:01:35]}  g5 {[%clk 0:01:45]} 21. g4 {[%clk 0:01:28]}  gxf4 {[%clk 0:01:32]} 22. exf4 {[%clk 0:01:25]}  Bh4 {[%clk 0:01:31]} 23. Qe2 {[%clk 0:01:19]}  Bf6 {[%clk 0:01:19]} 24. Ng6 {[%clk 0:01:06]}  Rf7 {[%clk 0:01:17]} 25. g5 {[%clk 0:01:06]}  Bxg5 {[%clk 0:01:04]} 26. Qh5 {[%clk 0:00:33]}  Bh6 {[%clk 0:01:03]} 27. Nh8 {[%clk 0:00:21]}  Rf6 {[%clk 0:01:00]} 28. Ng6 {[%clk 0:00:13]}  Nd6 {[%clk 0:00:59]} 29. Bc3 {[%clk 0:00:12]}  Be8 {[%clk 0:00:57]} 30. Qh4 {[%clk 0:00:03]}  Rxg6+ {[%clk 0:00:53]} 31. Kh1 {[%clk 0:00:03]}  Qxh4 {[%clk 0:00:52]} 0-1


[Site "https://www.chess.com"]

[Event "Titled Tuesday Blitz May 03 Late 2022"]
[White "Svane, Rasmus"]
[Black "Licznerski, Lukasz"]
[WhiteFideId "4657101"]
[BlackFideId "1179250"]
[WhiteElo "2645"]
[BlackElo "2422"]
[Result "0-1"]
[Round "07"]
[TimeControl "180+1"]
[Date "2022.05.03"]
[WhiteClock "0:01:10"]
[BlackClock "0:00:56"]

1. Nf3 {[%clk 0:02:58]}  Nf6 {[%clk 0:02:59]} 2. g3 {[%clk 0:02:58]}  g6 {[%clk 0:03:00]} 3. Bg2 {[%clk 0:02:58]}  Bg7 {[%clk 0:03:00]} 4. O-O {[%clk 0:02:59]}  d5 {[%clk 0:03:01]} 5. d4 {[%clk 0:03:00]}  O-O {[%clk 0:03:01]} 6. c3 {[%clk 0:03:00]}  c6 {[%clk 0:02:56]} 7. Re1 {[%clk 0:03:00]}  Bf5 {[%clk 0:02:50]} 8. Nbd2 {[%clk 0:03:00]}  Nbd7 {[%clk 0:02:47]} 9. Nh4 {[%clk 0:03:00]}  Be6 {[%clk 0:02:46]} 10. e4 {[%clk 0:03:01]}  dxe4 {[%clk 0:02:44]} 11. Nxe4 {[%clk 0:03:02]}  Bd5 {[%clk 0:02:40]} 12. Nxf6+ {[%clk 0:02:56]}  Bxf6 {[%clk 0:02:33]} 13. Nf3 {[%clk 0:02:51]}  Re8 {[%clk 0:02:24]} 14. Bf4 {[%clk 0:02:43]}  Qb6 {[%clk 0:02:19]} 15. Qc2 {[%clk 0:02:32]}  Rad8 {[%clk 0:02:14]} 16. h4 {[%clk 0:02:15]}  Bxf3 {[%clk 0:02:04]} 17. Bxf3 {[%clk 0:02:16]}  e5 {[%clk 0:02:04]} 18. dxe5 {[%clk 0:02:16]}  Nxe5 {[%clk 0:02:04]} 19. Bg2 {[%clk 0:02:14]}  h5 {[%clk 0:01:52]} 20. Be3 {[%clk 0:02:13]}  Qc7 {[%clk 0:01:46]} 21. Rad1 {[%clk 0:02:06]}  Ng4 {[%clk 0:01:38]} 22. Bf4 {[%clk 0:01:33]}  Be5 {[%clk 0:01:20]} 23. Rxd8 {[%clk 0:01:31]}  Rxd8 {[%clk 0:01:18]} 24. Bg5 {[%clk 0:01:29]}  Bf6 {[%clk 0:01:14]} 25. Bc1 {[%clk 0:01:20]}  Be7 {[%clk 0:01:05]} 26. Rd1 {[%clk 0:01:14]}  Bc5 {[%clk 0:01:00]} 27. Rf1 {[%clk 0:01:10]}  Qxg3 {[%clk 0:00:56]} 0-1


[Site "https://www.chess.com"]

[Event "Titled Tuesday Blitz May 03 Late 2022"]
[White "Tang, Andrew"]
[Black "Matinian, Nikita"]
[WhiteFideId "2059630"]
[BlackFideId "24129100"]
[WhiteElo "2584"]
[BlackElo "2422"]
[Result "1-0"]
[Round "07"]
[TimeControl "180+1"]
[Date "2022.05.03"]
[WhiteClock "0:01:37"]
[BlackClock "0:00:07"]

1. d4 {[%clk 0:03:00]}  Nf6 {[%clk 0:02:59]} 2. c4 {[%clk 0:03:00]}  g6 {[%clk 0:02:59]} 3. f3 {[%clk 0:03:00]}  Bg7 {[%clk 0:02:58]} 4. e4 {[%clk 0:03:01]}  d6 {[%clk 0:02:58]} 5. Nc3 {[%clk 0:03:02]}  O-O {[%clk 0:02:58]} 6. Nge2 {[%clk 0:03:02]}  Nc6 {[%clk 0:02:57]} 7. Be3 {[%clk 0:02:59]}  a6 {[%clk 0:02:56]} 8. Rb1 {[%clk 0:02:57]}  b5 {[%clk 0:02:51]} 9. cxb5 {[%clk 0:02:58]}  axb5 {[%clk 0:02:52]} 10. Nxb5 {[%clk 0:02:58]}  Ba6 {[%clk 0:02:25]} 11. Nec3 {[%clk 0:02:57]}  e5 {[%clk 0:02:21]} 12. d5 {[%clk 0:02:56]}  Ne7 {[%clk 0:02:16]} 13. Bc4 {[%clk 0:02:43]}  Nh5 {[%clk 0:02:15]} 14. O-O {[%clk 0:02:42]}  f5 {[%clk 0:02:16]} 15. Qd2 {[%clk 0:02:41]}  f4 {[%clk 0:02:14]} 16. Bf2 {[%clk 0:02:42]}  g5 {[%clk 0:02:15]} 17. b4 {[%clk 0:02:33]}  Nf6 {[%clk 0:02:14]} 18. h3 {[%clk 0:02:32]}  h5 {[%clk 0:02:14]} 19. Rfc1 {[%clk 0:02:33]}  g4 {[%clk 0:02:14]} 20. hxg4 {[%clk 0:02:34]}  hxg4 {[%clk 0:02:14]} 21. Kf1 {[%clk 0:02:34]}  g3 {[%clk 0:01:56]} 22. Bg1 {[%clk 0:02:34]}  Ng6 {[%clk 0:01:57]} 23. a4 {[%clk 0:02:33]}  Nh4 {[%clk 0:01:56]} 24. a5 {[%clk 0:02:29]}  Qe8 {[%clk 0:01:45]} 25. Qd3 {[%clk 0:02:29]}  Qh5 {[%clk 0:01:32]} 26. Nxd6 {[%clk 0:02:16]}  cxd6 {[%clk 0:01:28]} 27. Bxa6 {[%clk 0:02:16]}  Rxa6 {[%clk 0:01:28]} 28. Qxa6 {[%clk 0:02:14]}  Nxf3 {[%clk 0:01:28]} 29. gxf3 {[%clk 0:01:59]}  Qxf3+ {[%clk 0:01:29]} 30. Ke1 {[%clk 0:02:00]}  Qh1 {[%clk 0:01:06]} 31. Kd2 {[%clk 0:01:56]}  f3 {[%clk 0:01:06]} 32. Qxd6 {[%clk 0:01:47]}  Qg2+ {[%clk 0:01:05]} 33. Kd3 {[%clk 0:01:46]}  f2 {[%clk 0:00:43]} 34. Qe6+ {[%clk 0:01:46]}  Kh7 {[%clk 0:00:37]} 35. Bxf2 {[%clk 0:01:46]}  gxf2 {[%clk 0:00:37]} 36. Rh1+ {[%clk 0:01:46]}  Bh6 {[%clk 0:00:37]} 37. Qh3 {[%clk 0:01:42]}  Qxh3+ {[%clk 0:00:13]} 38. Rxh3 {[%clk 0:01:43]}  Ng4 {[%clk 0:00:13]} 39. Rf1 {[%clk 0:01:38]}  Kg6 {[%clk 0:00:08]} 40. a6 {[%clk 0:01:37]}  Rb8 {[%clk 0:00:07]} 41. a7 {[%clk 0:01:37]}  Ra8 {[%clk 0:00:07]} 42. Nb5 {[%clk 0:01:37]} 1-0


[Site "https://www.chess.com"]